bitfinex-derivatives/quotes_BTCF0:USTF0_20210108
["timestamp","ask_amount","ask_price","bid_price","bid_amount"]
[1610141953081,0.2963,39974.0,39966.0,0.11359]
[1610141953481,0.2963,39974.0,39950.0,3.57874]
[1610141953482,0.37967309,39963.0,39950.0,3.57874]
[1610141953685,0.37967309,39963.0,39950.0,0.09724]
[1610141953884,0.13632608,39951.0,39950.0,0.09724]
[1610141954084,0.13632608,39951.0,39928.0,3.6112]
[1610141955888,0.13632608,39929.0,39928.0,3.6112]
[1610141956088,0.13632608,39929.0,39912.0,0.10208]
[1610141956291,0.13632608,39929.0,39910.0,4.0244]
[1610141957792,0.12681,39934.0,39924.0,0.13632608]
[1610141958797,0.45039609,39949.0,39924.0,0.25885608]
[1610141959015,0.45033494,39952.0,39924.0,0.25885608]
[1610141959403,0.08882,39954.0,39924.0,0.25885608]
[1610141959697,0.450243,39958.0,39924.0,0.25885608]
[1610141959899,0.45030433,39959.0,39947.0,0.13632608]
[1610141960399,0.45029978,39960.0,39947.0,0.13632608]
[1610141960601,0.45029978,39960.0,39932.0,0.11753]
[1610141961199,0.4503422,39958.0,39924.0,0.12253]
[1610141961600,0.45042814,39956.0,39924.0,0.12253]
[1610141961799,0.56180814,39956.0,39924.0,0.12253]
[1610141962001,0.56180814,39956.0,39933.0,0.13632608]
[1610141962399,0.11138,39956.0,39933.0,0.13632608]
[1610141962599,0.11138,39956.0,39935.0,0.436]
[1610141963901,0.13632608,39936.0,39935.0,0.436]
[1610141965902,0.13632608,39936.0,39935.0,0.57232608]
[1610141968007,0.13632608,39936.0,39935.0,0.5726224]
[1610141969010,0.13632608,39936.0,39935.0,0.43629632]
[1610141969317,0.13632608,39936.0,39935.0,0.00029632]
[1610141969807,0.13632608,39936.0,39924.0,0.12253]
[1610141970009,0.13632608,39925.0,39921.0,0.13632608]
[1610141970308,0.13632608,39925.0,39922.0,0.00029651]
[1610141970710,0.13632608,39925.0,39911.0,0.00029653]
[1610141970908,0.13632608,39925.0,39923.0,0.00029653]
[1610141971109,0.13632608,39925.0,39912.0,0.00029653]
[1610141971507,0.13632608,39925.0,39900.0,0.03091753]
[1610141971810,0.13632608,39925.0,39913.0,0.00029653]
[1610141972007,0.09241,39927.0,39916.0,0.13632608]
[1610141972508,0.09241,39927.0,39917.0,0.00029653]
[1610141973912,0.13632608,39918.0,39917.0,0.00029653]
[1610141975610,0.09241,39927.0,39917.0,0.00029653]
[1610141975909,0.45227676,39938.0,39917.0,0.00029653]
[1610141976109,0.13632608,39918.0,39914.0,0.13632608]
[1610141976510,0.13632608,39918.0,39915.0,0.00029558]
[1610141982121,0.13632608,39918.0,39908.0,0.00029565]
[1610141982318,0.13632608,39909.0,39895.0,0.13632608]
[1610141982720,0.13632608,39909.0,39896.0,0.00029573]
[1610141983719,0.13632608,39909.0,39883.0,0.03092625]
[1610141984021,0.45297327,39906.0,39897.0,0.00029573]
[1610141984219,0.13632608,39898.0,39884.0,0.00029577]
[1610141984421,0.13632608,39898.0,39878.0,0.13632608]
[1610141984422,0.23212608,39898.0,39878.0,0.13632608]
[1610141984621,0.23212608,39898.0,39885.0,0.00029577]
[1610141985019,0.23212608,39898.0,39879.0,0.00029577]
[1610141985319,0.23212608,39898.0,39886.0,0.00029577]
[1610141985520,0.23212608,39898.0,39880.0,0.00029577]
[1610141985724,0.23212608,39898.0,39870.0,3.499]
[1610141985923,0.23212608,39898.0,39881.0,0.00029578]
[1610141986220,0.13632608,39882.0,39881.0,0.00029578]
[1610141986421,0.13632608,39882.0,39873.0,0.13632608]
[1610141986422,0.21651608,39882.0,39873.0,0.13632608]
[1610141987224,0.21651608,39882.0,39874.0,0.00029577]
[1610141987722,0.08019,39882.0,39874.0,0.00029578]
[1610141987922,0.08019,39882.0,39864.0,0.00029578]
[1610141988223,0.13632608,39876.0,39875.0,0.00029578]
[1610141988422,0.13632608,39876.0,39865.0,0.00029581]
[1610141988622,0.13632608,39876.0,39875.0,0.00029581]
[1610141988828,0.13632608,39876.0,39859.0,0.13632608]
[1610141990327,0.13632608,39865.0,39859.0,0.13632608]
[1610141992331,0.08777,39873.0,39863.0,0.13632608]
[1610141993133,0.08019,39882.0,39868.0,3.0545]
[1610141993332,0.0958,39898.0,39868.0,3.0545]
[1610141993333,0.0958,39898.0,39868.0,4.5545]
[1610141993532,0.45119444,39907.0,39868.0,3.0545]
[1610141993833,0.45109431,39911.0,39869.0,0.00029577]
[1610141994334,0.13632608,39893.0,39891.0,0.13632608]
[1610141994534,0.1061,39906.0,39891.0,0.13632608]
[1610141994936,0.1061,39906.0,39893.0,3.9441]
[1610141996235,0.58719233,39925.0,39905.0,0.13632608]
[1610141996556,0.54100945,39927.0,39906.0,1.5]
[1610141996557,0.45081299,39927.0,39906.0,1.5]
[1610141996761,0.45069567,39939.0,39906.0,1.5]
[1610141997037,0.45069567,39939.0,39907.0,0.00029551]
[1610141997237,0.94725023,39945.0,39907.0,0.00029551]
[1610141997238,0.2863,39945.0,39907.0,0.00029551]
[1610141997840,0.2863,39945.0,39906.0,1.50029544]
[1610141998139,0.2863,39945.0,39908.0,0.00029542]
[1610141998440,0.2863,39945.0,39944.0,0.13632608]
[1610141999040,0.2863,39945.0,39943.0,2.66462586]
[1610141999739,0.2863,39945.0,39931.0,0.08257]
[1610141999945,0.2863,39945.0,39905.0,0.10504]
[1610141999946,0.39133,39945.0,39924.0,3.7565]
[1610142000342,0.13632608,39925.0,39924.0,3.7565]
[1610142000542,0.13632608,39925.0,39909.0,0.13632608]
[1610142000745,0.13632608,39925.0,39905.0,0.10504]
[1610142001246,0.13632608,39925.0,39906.0,0.00029547]
[1610142002245,0.13632608,39912.0,39911.0,0.13632608]
[1610142002548,0.13632608,39912.0,39906.0,0.00029547]
[1610142002745,0.13632608,39912.0,39905.0,0.10504]
[1610142002946,0.13632608,39912.0,39901.0,3.1619]
[1610142003146,0.13632608,39912.0,39906.0,0.10896547]
[1610142003346,0.13632608,39912.0,39906.0,0.10867]
[1610142003646,0.13632608,39912.0,39907.0,0.00029547]
[1610142004246,0.13632608,39912.0,39911.0,0.13632608]
[1610142004446,0.13632608,39912.0,39911.0,0.62322608]
[1610142005048,0.10948,39935.0,39911.0,0.62322608]
[1610142005248,0.10948,39935.0,39911.0,0.13632608]
[1610142005447,0.10948,39935.0,39921.0,3.2751]
[1610142005648,0.45158589,39941.0,39921.0,3.2751]
[1610142005948,0.45154886,39944.0,39921.0,3.2751]
[1610142006350,0.39133,39945.0,39938.0,0.13632608]
[1610142006548,0.39133,39945.0,39921.0,3.2751]
[1610142008049,0.2863,39945.0,39921.0,3.2751]
[1610142008249,0.13632608,39939.0,39934.0,0.13632608]
[1610142008451,0.13632608,39939.0,39921.0,3.2751]
[1610142008649,0.13632608,39939.0,39916.0,0.1146]
[1610142009149,0.22304608,39939.0,39916.0,0.1146]
[1610142009650,0.45180115,39937.0,39916.0,0.1146]
[1610142009849,0.45180115,39937.0,39906.0,3.92077]
[1610142010053,0.45185072,39935.0,39906.0,3.92077]
[1610142010349,0.36718273,39938.0,39906.0,4.05709608]
[1610142010350,0.13632608,39907.0,39906.0,4.05709608]
[1610142010550,0.13632608,39907.0,39906.0,0.24499608]
[1610142010750,0.13632608,39907.0,39888.0,4.0953]
[1610142011551,0.13632608,39907.0,39889.0,0.00029567]
[1610142011955,0.45236072,39918.0,39888.0,4.0953]
[1610142012155,0.45236072,39918.0,39890.0,0.00029569]
[1610142012354,0.56710758,39920.0,39913.0,0.13632608]
[1610142012754,0.11462,39920.0,39907.0,3.6445]
[1610142014155,0.45261716,39925.0,39907.0,3.6445]
[1610142014356,0.45260594,39926.0,39907.0,3.6445]
[1610142015357,0.45273038,39923.0,39907.0,3.6445]
[1610142015558,0.45278252,39922.0,39907.0,3.6445]
[1610142015860,0.45278313,39920.0,39907.0,3.6445]
[1610142016058,0.54724313,39920.0,39907.0,3.6445]
[1610142016457,0.13632608,39908.0,39893.0,0.09326]
[1610142017467,0.13632608,39908.0,39883.0,3.04328]
[1610142017871,0.13632608,39908.0,39884.0,0.00029569]
[1610142018463,0.57016225,39909.0,39886.0,0.13632608]
[1610142018863,0.11733,39909.0,39887.0,0.00029569]
[1610142020565,0.13632608,39888.0,39887.0,0.00029569]
[1610142021266,0.11733,39909.0,39887.0,0.00029569]
[1610142021968,0.45295899,39915.0,39887.0,0.00029569]
[1610142022567,0.45301833,39916.0,39887.0,0.00029569]
[1610142022970,0.45301833,39916.0,39884.0,0.00029569]
[1610142023168,0.45304455,39914.0,39888.0,0.00029569]
[1610142023367,0.45304455,39914.0,39885.0,0.00029569]
[1610142023567,0.45313009,39913.0,39885.0,0.00029569]
[1610142023767,0.45313009,39913.0,39889.0,0.00029569]
[1610142023968,0.45313009,39913.0,39886.0,0.00029569]
[1610142024168,0.45313009,39913.0,39890.0,0.00029569]
[1610142024370,0.45313009,39913.0,39898.0,0.13632608]
[1610142024774,0.45318835,39914.0,39899.0,0.00029569]
[1610142025372,0.45318227,39915.0,39899.0,0.00029569]
[1610142026474,0.45318227,39915.0,39903.0,0.13632608]
[1610142026876,0.45338381,39914.0,39904.0,0.00029567]
[1610142027474,0.54403036,39916.0,39904.0,0.00029567]
[1610142027475,0.45342801,39916.0,39904.0,0.00029567]
[1610142027675,0.45354168,39915.0,39904.0,0.00029567]
[1610142027975,0.05469722,39920.0,39904.0,0.00029567]
[1610142027976,0.45354268,39916.0,39904.0,0.00029567]
[1610142028378,0.13632608,39905.0,39904.0,0.00029567]
[1610142028579,0.23606608,39905.0,39904.0,0.00029567]
[1610142028779,0.23606608,39905.0,39893.0,0.00029571]
[1610142028978,0.68979841,39905.0,39875.0,3.5628]
[1610142029176,0.68979841,39905.0,39894.0,0.00029574]
[1610142029379,0.45383152,39898.0,39894.0,0.00029574]
[1610142029678,0.45383152,39898.0,39876.0,0.0002958]
[1610142029978,0.53172074,39895.0,39877.0,0.00029581]
[1610142030479,0.13632608,39878.0,39876.0,0.00029583]
[1610142030878,0.13632608,39878.0,39813.0,2.29393805]
[1610142031077,0.13632608,39878.0,39877.0,0.00029586]
[1610142031278,0.13632608,39878.0,39856.0,3.561]
[1610142031578,0.13632608,39878.0,39877.0,0.00029586]
[1610142031777,0.13632608,39878.0,39857.0,0.00029586]
[1610142032378,0.13632608,39858.0,39857.0,0.00029586]
[1610142034881,0.11466,39875.0,39857.0,0.00029586]
[1610142035081,0.11461,39884.0,39857.0,0.00029586]
[1610142035882,0.45323401,39894.0,39857.0,0.00029586]
[1610142036083,0.07786,39895.0,39857.0,0.00029586]
[1610142036282,0.45321622,39897.0,39864.0,3.7387]
[1610142036482,0.45321876,39898.0,39883.0,0.13632608]
[1610142036782,0.45321876,39898.0,39864.0,3.81757]
[1610142036982,0.45319848,39896.0,39884.0,0.00029425]
[1610142037182,0.53755848,39896.0,39865.0,0.00029442]
[1610142037382,0.45339019,39895.0,39885.0,0.00029434]
[1610142037682,0.08436,39896.0,39866.0,0.0002943]
[1610142037683,0.4532778,39892.0,39866.0,0.0002943]
[1610142037982,0.4532778,39892.0,39886.0,0.00029432]
[1610142038186,0.45329675,39890.0,39867.0,0.00029432]
[1610142038385,0.13632608,39868.0,39864.0,3.7387]
[1610142038986,0.13632608,39868.0,39865.0,0.00029434]
[1610142039787,0.13632608,39868.0,39860.0,0.00029434]
[1610142039988,0.13632608,39868.0,39866.0,0.00029434]
[1610142040289,0.13632608,39868.0,39861.0,0.00029434]
[1610142040488,0.13632608,39862.0,39858.0,3.332]
[1610142040789,0.13632608,39862.0,39859.0,0.00029434]
[1610142043696,0.13632608,39862.0,39860.0,0.00029436]
[1610142044296,0.13632608,39862.0,39859.0,0.00029436]
[1610142044498,0.13632608,39862.0,39861.0,0.13662044]
[1610142044798,0.09544,39873.0,39861.0,0.13632608]
[1610142045099,0.45271317,39888.0,39862.0,1.5]
[1610142045298,0.45271664,39890.0,39875.0,3.4813]
[1610142045598,0.45271664,39890.0,39875.0,3.56969]
[1610142045801,0.45263,39895.0,39876.0,0.00029431]
[1610142046199,0.53697276,39896.0,39876.0,0.00029431]
[1610142046399,1.02981763,39896.0,39876.0,1.50029431]
[1610142046600,0.57720487,39896.0,39895.0,0.55662608]
[1610142047200,0.49284487,39896.0,39895.0,0.55662608]
[1610142047501,0.49284487,39896.0,39895.0,0.4203]
[1610142048604,0.62917095,39896.0,39895.0,0.4203]
[1610142050702,0.49284487,39896.0,39895.0,0.4203]
[1610142051205,0.49284487,39896.0,39895.0,0.42059417]
[1610142052502,0.49284487,39896.0,39895.0,2.05692025]
[1610142052701,0.49284487,39896.0,39895.0,2.16205025]
[1610142054001,0.49284487,39896.0,39895.0,2.19266651]
[1610142055102,0.49284487,39896.0,39895.0,0.69266651]
[1610142055303,0.49284487,39896.0,39895.0,0.27236651]
[1610142056906,0.49284487,39896.0,39895.0,0.24175025]
[1610142057306,0.49284487,39896.0,39895.0,0.10542417]
[1610142058604,0.62917095,39896.0,39895.0,0.10542417]
[1610142059203,0.49284487,39896.0,39895.0,0.10542417]
[1610142060506,0.49284487,39896.0,39895.0,0.24175025]
[1610142061513,0.49284487,39896.0,39895.0,0.10542417]
[1610142062610,0.75451095,39896.0,39895.0,0.00029417]
[1610142062914,0.75451095,39896.0,39870.0,2.8517]
[1610142063208,2.11918233,39896.0,39876.0,0.00029378]
[1610142063507,2.11918233,39896.0,39870.0,2.8517]
[1610142063508,0.45331527,39891.0,39871.0,0.00029378]
[1610142064011,0.4533164,39893.0,39871.0,0.00029378]
[1610142064508,0.13632608,39876.0,39871.0,0.00029378]
[1610142064708,0.4533164,39893.0,39871.0,0.00029378]
[1610142064909,0.61818487,39896.0,39871.0,0.00029378]
[1610142065108,0.61818487,39896.0,39871.0,1.50029378]
[1610142065610,0.61818487,39896.0,39872.0,0.00029374]
[1610142066511,0.49284487,39896.0,39895.0,0.13632608]
[1610142066908,0.49284487,39896.0,39895.0,0.13661978]
[1610142068212,0.49284487,39896.0,39895.0,0.0002937]
[1610142068609,0.62917095,39896.0,39895.0,0.0002937]
[1610142068810,0.62917095,39896.0,39892.0,0.0002937]
[1610142069511,1.08368731,39896.0,39884.0,0.0002937]
[1610142070011,0.45452262,39895.0,39884.0,0.0002937]
[1610142070611,0.13632608,39885.0,39884.0,0.0002937]
[1610142070810,0.13632608,39885.0,39879.0,0.00029373]
[1610142071109,0.45463973,39894.0,39879.0,0.00029373]
[1610142071315,0.94745341,39896.0,39879.0,0.11365373]
[1610142071811,0.49284487,39896.0,39880.0,0.00029368]
[1610142072612,0.49284487,39896.0,39895.0,0.13632608]
[1610142073012,0.49284487,39896.0,39880.0,0.00029368]
[1610142073013,0.49284487,39896.0,39893.0,0.08219]
[1610142073212,0.49284487,39896.0,39895.0,0.00029366]
[1610142073513,0.49284487,39896.0,39894.0,0.00029366]
[1610142073713,0.49284487,39896.0,39895.0,0.00029366]
[1610142074313,0.49284487,39896.0,39894.0,0.00029366]
[1610142074513,0.49284487,39896.0,39895.0,0.00029363]
[1610142074716,0.49284487,39896.0,39895.0,0.13661971]
[1610142075114,0.49284487,39896.0,39895.0,0.13632608]
[1610142075314,0.49284487,39896.0,39895.0,0.13661971]
[1610142075814,0.49284487,39896.0,39895.0,0.00029363]
[1610142076314,0.49284487,39896.0,39893.0,0.64199]
[1610142076315,0.49284487,39896.0,39894.0,0.00029363]
[1610142076716,0.49284487,39896.0,39895.0,0.00029363]
[1610142077314,0.49284487,39896.0,39893.0,0.77831608]
[1610142077315,0.49284487,39896.0,39894.0,0.00029363]
[1610142077515,0.49284487,39896.0,39895.0,0.00029363]
[1610142077915,0.49284487,39896.0,39894.0,0.00029366]
[1610142078214,0.49284487,39896.0,39895.0,0.00029366]
[1610142078617,0.62917095,39896.0,39895.0,0.00029366]
[1610142078817,0.62917095,39896.0,39894.0,0.00029366]
[1610142079116,0.62917095,39896.0,39895.0,0.00029368]
[1610142079518,0.62917095,39896.0,39894.0,0.00029368]
[1610142079718,0.62917095,39896.0,39895.0,0.00029368]
[1610142080318,0.62917095,39896.0,39894.0,0.00029368]
[1610142080618,0.62917095,39896.0,39893.0,0.5598]
[1610142080619,0.62917095,39896.0,39895.0,0.00029363]
[1610142080818,0.62917095,39896.0,39895.0,0.11080363]
[1610142081021,0.62917095,39896.0,39895.0,0.11051]
[1610142081219,0.49284487,39896.0,39895.0,0.11051]
[1610142081520,0.49284487,39896.0,39895.0,0.11080361]
[1610142082624,0.49284487,39896.0,39895.0,0.24712969]
[1610142083322,0.49284487,39896.0,39895.0,0.11080361]
[1610142084721,0.62917095,39896.0,39895.0,0.11080361]
[1610142090928,0.62917095,39896.0,39895.0,0.14143356]
[1610142091626,1.08438035,39896.0,39895.0,0.11080361]
[1610142092028,1.99806156,39896.0,39895.0,0.11080361]
[1610142092326,2.12286792,39896.0,39895.0,0.00029361]
[1610142092729,2.79056068,39896.0,39876.0,0.03093036]
[1610142092928,2.79056068,39896.0,39895.0,0.00029371]
[1610142093129,3.54898784,39896.0,39877.0,0.00029371]
[1610142093529,3.18155106,39896.0,39876.0,0.03093036]
[1610142093729,3.18155106,39896.0,39878.0,0.00029371]
[1610142093928,3.18155106,39896.0,39876.0,0.03063665]
[1610142093929,0.4553317,39887.0,39877.0,0.00029371]
[1610142094231,0.4553317,39887.0,39876.0,0.03093036]
[1610142094531,0.4553317,39887.0,39878.0,0.00029371]
[1610142094830,0.13632608,39879.0,39877.0,0.00029176]
[1610142095032,0.13632608,39879.0,39876.0,0.03063665]
[1610142095330,0.13632608,39879.0,39878.0,0.00029176]
[1610142095532,0.13632608,39879.0,39876.0,0.03092841]
[1610142097230,0.13632608,39879.0,39876.0,0.00029176]
[1610142097432,0.13632608,39879.0,39877.0,0.00029178]
[1610142097930,0.13632608,39879.0,39876.0,0.00029178]
[1610142098332,0.13632608,39879.0,39878.0,0.00029178]
[1610142098532,0.13632608,39879.0,39877.0,0.00029178]
[1610142098732,0.13632608,39879.0,39878.0,0.00029178]
[1610142099233,0.13632608,39879.0,39876.0,0.00029178]
[1610142099533,0.13632608,39879.0,39878.0,0.00029178]
[1610142099733,0.13632608,39879.0,39877.0,0.00029181]
[1610142100034,0.13632608,39879.0,39875.0,3.1274]
[1610142100236,0.13632608,39879.0,39878.0,0.00029181]
[1610142100636,0.13632608,39879.0,39876.0,0.00029181]
[1610142100836,0.13632608,39879.0,39878.0,0.00029181]
[1610142101140,0.13632608,39879.0,39877.0,0.00029181]
[1610142101337,0.13632608,39879.0,39878.0,0.00029181]
[1610142101938,0.13632608,39879.0,39876.0,0.00029181]
[1610142102237,0.13632608,39879.0,39878.0,0.00029181]
[1610142102438,0.13632608,39879.0,39877.0,0.00029181]
[1610142102637,0.13632608,39879.0,39878.0,0.00029181]
[1610142103239,0.13632608,39879.0,39876.0,0.00029181]
[1610142103439,0.13632608,39879.0,39878.0,0.00029181]
[1610142103838,0.13632608,39879.0,39877.0,0.00029181]
[1610142104040,0.13632608,39879.0,39878.0,0.00029181]
[1610142104540,0.13632608,39879.0,39875.0,3.1274]
[1610142104541,0.13632608,39879.0,39876.0,0.00029181]
[1610142104742,0.13632608,39879.0,39878.0,0.00029181]
[1610142105142,0.13632608,39879.0,39877.0,0.00029181]
[1610142105441,0.13632608,39879.0,39878.0,0.00029181]
[1610142105845,0.13632608,39879.0,39876.0,0.00029183]
[1610142106043,0.13632608,39879.0,39878.0,0.00029183]
[1610142106343,0.13632608,39879.0,39876.0,0.00029183]
[1610142110851,0.13632608,39879.0,39871.0,0.00029185]
[1610142111151,0.13632608,39879.0,39877.0,0.00029185]
[1610142111350,0.13632608,39879.0,39865.0,3.5641]
[1610142111351,0.13632608,39879.0,39872.0,0.00029185]
[1610142111751,0.13632608,39879.0,39878.0,0.00029185]
[1610142111950,0.13632608,39879.0,39873.0,0.00029185]
[1610142112150,0.13632608,39879.0,39878.0,0.00029185]
[1610142112551,0.13632608,39879.0,39874.0,0.00029185]
[1610142112752,0.13632608,39879.0,39878.0,0.00029187]
[1610142113051,0.13632608,39879.0,39878.0,4.038]
[1610142113250,0.13632608,39879.0,39878.0,4.03829189]
[1610142113552,0.13632608,39879.0,39878.0,4.13478189]
[1610142114151,0.13632608,39879.0,39878.0,0.09678189]
[1610142115755,0.13632608,39879.0,39878.0,0.00029189]
[1610142116055,0.13632608,39879.0,39874.0,0.00029186]
[1610142116357,0.13632608,39879.0,39871.0,0.00029186]
[1610142116755,0.59235706,39879.0,39875.0,0.00029186]
[1610142116954,0.59235706,39879.0,39872.0,0.00029189]
[1610142117155,0.45603535,39877.0,39876.0,0.00029189]
[1610142117454,0.45603535,39877.0,39873.0,0.00029189]
[1610142117654,0.45603535,39877.0,39876.0,0.00029189]
[1610142117854,0.91494517,39878.0,39876.0,0.00029189]
[1610142118054,0.91494517,39878.0,39874.0,0.00029191]
[1610142118255,0.36762754,39878.0,39877.0,0.00029191]
[1610142118454,0.36762754,39878.0,39875.0,0.00029191]
[1610142118655,2.03998447,39878.0,39875.0,0.00029191]
[1610142118856,2.03998447,39878.0,39877.0,0.00029193]
[1610142119057,2.03998447,39878.0,39876.0,0.00029193]
[1610142119256,0.36762754,39878.0,39877.0,0.00029193]
[1610142119657,0.13632608,39879.0,39867.0,3.1326]
[1610142119658,0.80517234,39879.0,39868.0,0.00029193]
[1610142119959,2.03981854,39878.0,39877.0,0.00029193]
[1610142120156,2.03981854,39878.0,39869.0,0.00029193]
[1610142120359,2.03981854,39878.0,39877.0,0.00029193]
[1610142120557,2.03981854,39878.0,39870.0,0.00029193]
[1610142120958,0.13632608,39871.0,39868.0,0.00029193]
[1610142121160,0.13632608,39871.0,39858.0,0.08827]
[1610142121361,0.13632608,39871.0,39869.0,0.00029137]
[1610142121560,0.45618315,39876.0,39870.0,3.2696]
[1610142121761,0.45618315,39876.0,39859.0,0.0309429]
[1610142121961,0.45616198,39877.0,39874.0,3.3824]
[1610142122361,0.45614047,39878.0,39874.0,3.3824]
[1610142122561,0.45614047,39878.0,39875.0,0.00029133]
[1610142122761,0.45611713,39879.0,39875.0,0.00029133]
[1610142122961,0.54731016,39881.0,39877.0,0.13632608]
[1610142123163,0.45610881,39879.0,39877.0,0.23961608]
[1610142123362,0.76009389,39888.0,39877.0,0.23961608]
[1610142123661,4.0697,39946.0,39878.0,0.00029127]
[1610142123662,0.45604599,39884.0,39878.0,0.00029127]
[1610142123968,0.45597572,39892.0,39883.0,2.9139]
[1610142124169,0.75985823,39901.0,39883.0,2.9139]
[1610142124371,0.5512294,39903.0,39884.0,0.00029121]
[1610142124372,0.45594502,39893.0,39884.0,0.00029121]
[1610142124569,0.66864846,39899.0,39884.0,0.03092811]
[1610142124770,0.45593023,39895.0,39884.0,0.03092811]
[1610142124971,0.45593023,39895.0,39894.0,0.13632608]
[1610142125170,0.45593023,39895.0,39894.0,0.70742608]
[1610142125478,0.49284487,39896.0,39894.0,0.70771722]
[1610142125677,0.49284487,39896.0,39894.0,0.13661722]
[1610142125865,0.49284487,39896.0,39895.0,0.0002911]
[1610142126066,0.49284487,39896.0,39895.0,1.53091573]
[1610142126266,0.49284487,39896.0,39895.0,1.53062463]
[1610142126568,0.49284487,39896.0,39895.0,1.53091567]
[1610142127166,0.49284487,39896.0,39895.0,0.03091567]
[1610142128867,0.49284487,39896.0,39895.0,0.00029104]
[1610142129070,0.62917095,39896.0,39895.0,0.00029104]
[1610142134573,0.62917095,39896.0,39894.0,0.00029111]
[1610142134776,0.62917095,39896.0,39893.0,0.11927]
[1610142135176,0.62917095,39896.0,39885.0,4.26755]
[1610142135776,0.45540159,39895.0,39886.0,0.00029116]
[1610142136076,0.45543187,39892.0,39886.0,0.00029116]
[1610142136374,0.45543187,39892.0,39885.0,4.1443]
[1610142136576,0.45549231,39890.0,39885.0,4.1443]
[1610142136980,0.13632608,39886.0,39885.0,4.1443]
[1610142137379,0.13632608,39886.0,39885.0,4.1445912]
[1610142140679,0.13632608,39886.0,39885.0,0.0002912]
[1610142141180,0.13632608,39886.0,39878.0,0.0002912]
[1610142141380,0.59195275,39886.0,39885.0,0.0002912]
[1610142141579,0.59195275,39886.0,39879.0,0.00029122]
[1610142141780,1.50621101,39886.0,39879.0,0.00029122]
[1610142141980,1.50621101,39886.0,39878.0,0.00029122]
[1610142142181,0.45565767,39884.0,39880.0,0.00029122]
[1610142142380,0.45565767,39884.0,39879.0,0.00029122]
[1610142142581,0.45574282,39883.0,39879.0,0.00029122]
[1610142142780,0.45574282,39883.0,39874.0,0.00029122]
[1610142142982,0.45574282,39883.0,39880.0,0.00029122]
[1610142143184,0.13632608,39881.0,39875.0,0.00029122]
[1610142143379,0.13632608,39881.0,39873.0,3.42839122]
[1610142143580,0.59212892,39881.0,39873.0,3.42839122]
[1610142143779,0.59212892,39881.0,39874.0,0.0002912]
[1610142144279,0.45583075,39880.0,39874.0,0.0002912]
[1610142145180,0.13632608,39875.0,39874.0,0.0002912]
[1610142148285,0.13632608,39875.0,39867.0,0.00029126]
[1610142148484,0.13632608,39875.0,39874.0,0.00029126]
[1610142148687,0.13632608,39875.0,39868.0,0.00029126]
[1610142149084,0.45599925,39880.0,39871.0,0.13632608]
[1610142149685,0.45602532,39879.0,39872.0,0.00029126]
[1610142150686,0.45605343,39880.0,39872.0,0.00029126]
[1610142150885,0.45605343,39880.0,39867.0,0.00029126]
[1610142151087,0.13632608,39868.0,39866.0,0.10812]
[1610142151287,0.13632608,39868.0,39862.0,4.0461]
[1610142151586,0.13632608,39868.0,39863.0,0.00029128]
[1610142151986,0.13632608,39868.0,39863.0,0.11561128]
[1610142152486,0.13632608,39868.0,39864.0,0.00029128]
[1610142153087,0.13632608,39868.0,39867.0,0.13632608]
[1610142153687,0.13632608,39868.0,39867.0,0.13661736]
[1610142153888,0.13632608,39868.0,39867.0,0.00029128]
[1610142154288,0.13632608,39868.0,39864.0,0.00029128]
[1610142154488,0.13632608,39868.0,39867.0,0.00029128]
[1610142154890,0.13632608,39868.0,39863.0,0.11532]
[1610142154891,0.13632608,39868.0,39865.0,0.00029128]
[1610142155090,0.13632608,39868.0,39867.0,0.00029153]
[1610142155396,0.13632608,39868.0,39866.0,0.00029153]
[1610142155689,0.13632608,39868.0,39867.0,0.00029153]
[1610142155892,0.13632608,39868.0,39863.0,0.01561153]
[1610142156091,0.13632608,39868.0,39864.0,0.00029153]
[1610142156390,0.13632608,39868.0,39863.0,0.01561153]
[1610142156590,0.13632608,39868.0,39867.0,3.1618]
[1610142157191,0.13632608,39868.0,39867.0,3.29841758]
[1610142159293,0.13632608,39868.0,39867.0,0.0002915]
[1610142159893,0.13632608,39868.0,39864.0,0.0002915]
[1610142160196,0.13632608,39868.0,39867.0,0.0002915]
[1610142160393,0.13632608,39868.0,39865.0,0.0002915]
[1610142160596,0.13632608,39868.0,39867.0,0.0002915]
[1610142160795,0.13632608,39868.0,39866.0,0.0002915]
[1610142161095,0.13632608,39868.0,39867.0,0.0002915]
[1610142161696,0.13632608,39868.0,39866.0,0.0002915]
[1610142161896,0.13632608,39868.0,39867.0,0.00029152]
[1610142162398,0.13632608,39868.0,39866.0,0.00029152]
[1610142162796,0.13632608,39868.0,39867.0,0.00029152]
[1610142163298,0.13632608,39868.0,39866.0,0.00029152]
[1610142163497,0.13632608,39868.0,39867.0,0.00029152]
[1610142164097,0.13632608,39868.0,39866.0,0.03094204]
[1610142164297,0.13632608,39868.0,39867.0,0.00029152]
[1610142164497,0.13632608,39868.0,39867.0,0.03094099]
[1610142164901,0.13632608,39868.0,39866.0,0.03094143]
[1610142165099,0.13632608,39868.0,39867.0,0.03094126]
[1610142165601,0.13632608,39868.0,39866.0,0.03094137]
[1610142165803,0.13632608,39868.0,39867.0,0.03094122]
[1610142166302,0.13632608,39868.0,39866.0,0.03094143]
[1610142173612,0.13632608,39868.0,39867.0,3.8946]
[1610142174011,0.13632608,39868.0,39867.0,3.92554095]
[1610142174210,0.45568208,39877.0,39867.0,3.92554095]
[1610142174412,0.45562954,39881.0,39867.0,0.03094095]
[1610142174612,0.45562954,39881.0,39876.0,2.8484]
[1610142175014,0.66818581,39886.0,39876.0,2.8484]
[1610142175015,0.45561998,39884.0,39877.0,0.03093641]
[1610142175214,0.45561261,39885.0,39883.0,0.13632608]
[1610142175414,0.45561261,39885.0,39883.0,0.62142608]
[1610142175615,0.45557795,39888.0,39884.0,0.00029143]
[1610142175815,0.45557795,39888.0,39884.0,0.0309318]
[1610142176016,0.45550017,39891.0,39884.0,0.0309318]
[1610142176418,1.16084096,39896.0,39884.0,0.0309318]
[1610142176419,0.45548522,39894.0,39884.0,0.0309318]
[1610142176617,0.45548522,39894.0,39893.0,2.8917]
[1610142176817,0.45548522,39894.0,39893.0,3.0078]
[1610142177017,0.49284487,39896.0,39893.0,3.0078]
[1610142177216,0.49284487,39896.0,39895.0,0.13632608]
[1610142177718,0.49284487,39896.0,39895.0,0.13661744]
[1610142179218,0.62917095,39896.0,39895.0,0.13661744]
[1610142179619,0.62917095,39896.0,39895.0,0.00029136]
[1610142180119,0.62917095,39896.0,39894.0,0.00029138]
[1610142180320,0.62917095,39896.0,39895.0,0.00029138]
[1610142180822,0.62917095,39896.0,39894.0,0.00029138]
[1610142181021,0.62917095,39896.0,39895.0,0.00029138]
[1610142181721,0.62917095,39896.0,39894.0,0.00029138]
[1610142181922,1.0846576,39896.0,39895.0,0.00029143]
[1610142182225,1.29718411,39896.0,39895.0,0.00029143]
[1610142182421,1.29718411,39896.0,39890.0,0.00029146]
[1610142182622,2.66686803,39896.0,39895.0,0.00029146]
[1610142182822,2.66686803,39896.0,39891.0,0.00029146]